[Event "*** SCC Grand Prix: Titled Tuesday Blitz"]
[Site "Chess.com"]
[Date "2020.09.08"]
[Round "6"]
[White "kayrakamer"]
[Black "dpopadic"]
[Result "1-0"]
[WhiteElo "2606"]
[BlackElo "2355"]
[TimeControl "180+1"]
[EndTime "11:05:05 PDT"]
[Termination "kayrakamer won by resignation"]

1. e4 {[%clk 0:03:00.9]} 1... c5 {[%clk 0:02:58.7]} 2. Nf3 {[%clk 0:03:00.3]}
2... Nc6 {[%clk 0:02:58.5]} 3. Nc3 {[%clk 0:02:56.6]} 3... e5 {[%clk 0:02:57.5]}
4. Bc4 {[%clk 0:02:53.8]} 4... Be7 {[%clk 0:02:57.5]} 5. O-O {[%clk 0:02:53.7]}
5... Nf6 {[%clk 0:02:57.4]} 6. Ng5 {[%clk 0:02:50.9]} 6... O-O {[%clk
0:02:56.7]} 7. f4 {[%clk 0:02:51.4]} 7... exf4 {[%clk 0:02:54.8]} 8. Rxf4 {[%clk
0:02:51.3]} 8... d6 {[%clk 0:02:54.1]} 9. d3 {[%clk 0:02:46.2]} 9... Ne5 {[%clk
0:02:53.3]} 10. Bb3 {[%clk 0:02:44.5]} 10... h6 {[%clk 0:02:48.2]} 11. Nh3
{[%clk 0:02:33.2]} 11... Bg4 {[%clk 0:02:27.5]} 12. Qf1 {[%clk 0:02:30.7]} 12...
Ng6 {[%clk 0:02:22.6]} 13. Rf2 {[%clk 0:02:22.5]} 13... Bxh3 {[%clk 0:02:20.2]}
14. gxh3 {[%clk 0:02:23.4]} 14... a6 {[%clk 0:02:17.3]} 15. Nd5 {[%clk 0:02:11]}
15... Nxd5 {[%clk 0:02:16.2]} 16. Bxd5 {[%clk 0:02:11.9]} 16... Bf6 {[%clk
0:02:11.9]} 17. c3 {[%clk 0:02:03.3]} 17... Kh7 {[%clk 0:01:49.4]} 18. Bxb7
{[%clk 0:01:56.4]} 18... Ra7 {[%clk 0:01:49.1]} 19. Bd5 {[%clk 0:01:55.6]} 19...
Bg5 {[%clk 0:01:44.2]} 20. Bxf7 {[%clk 0:01:50.4]} 20... Bxc1 {[%clk 0:01:41.5]}
21. Bxg6+ {[%clk 0:01:46.1]} 21... Kxg6 {[%clk 0:01:37.6]} 22. Rxf8 {[%clk
0:01:44.6]} 22... Qg5+ {[%clk 0:01:35.7]} 23. Kh1 {[%clk 0:01:44.5]} 23... Bxb2
{[%clk 0:01:35.6]} 24. h4 {[%clk 0:01:12.5]} 24... Qe5 {[%clk 0:01:24.3]} 25.
Qg2+ {[%clk 0:01:11.2]} 25... Kh7 {[%clk 0:01:22.1]} 26. Qxb2 {[%clk 0:01:11.3]}
1-0

[Event "*** SCC Grand Prix: Titled Tuesday Blitz"]
[Site "Chess.com"]
[Date "2020.09.08"]
[Round "6"]
[White "UmarovSabir"]
[Black "Shota_Azaladze"]
[Result "0-1"]
[WhiteElo "2363"]
[BlackElo "2643"]
[TimeControl "180+1"]
[EndTime "11:05:11 PDT"]
[Termination "Shota_Azaladze won on time"]

1. e4 {[%clk 0:03:00.9]} 1... g6 {[%clk 0:02:59.6]} 2. d4 {[%clk 0:02:58.8]}
2... Bg7 {[%clk 0:03:00.5]} 3. Nc3 {[%clk 0:02:58.1]} 3... c5 {[%clk 0:03:00.9]}
4. d5 {[%clk 0:02:49.7]} 4... d6 {[%clk 0:02:59.3]} 5. Nf3 {[%clk 0:02:39.2]}
5... Nf6 {[%clk 0:02:59.3]} 6. Bg5 {[%clk 0:02:30.2]} 6... O-O {[%clk
0:02:59.5]} 7. Qd2 {[%clk 0:02:28.8]} 7... Bg4 {[%clk 0:02:58.8]} 8. Be2 {[%clk
0:02:18.1]} 8... Nbd7 {[%clk 0:02:57.2]} 9. h3 {[%clk 0:02:06]} 9... Bxf3 {[%clk
0:02:56.4]} 10. Bxf3 {[%clk 0:02:06.7]} 10... Qa5 {[%clk 0:02:56.3]} 11. O-O
{[%clk 0:01:58.1]} 11... b5 {[%clk 0:02:55.1]} 12. Bh6 {[%clk 0:01:44.4]} 12...
Ne5 {[%clk 0:02:51.9]} 13. Be2 {[%clk 0:00:58.6]} 13... b4 {[%clk 0:02:50.1]}
14. Bxg7 {[%clk 0:00:53]} 14... Kxg7 {[%clk 0:02:47.3]} 15. Nd1 {[%clk
0:00:47.3]} 15... Nxe4 {[%clk 0:02:45.8]} 16. Qe3 {[%clk 0:00:40]} 16... f5
{[%clk 0:02:45.1]} 17. Bd3 {[%clk 0:00:29.1]} 17... Nf6 {[%clk 0:02:43.6]} 18.
f4 {[%clk 0:00:12.8]} 18... Nf7 {[%clk 0:02:43]} 19. c4 {[%clk 0:00:11.9]} 19...
Rfe8 {[%clk 0:02:42.1]} 20. Re1 {[%clk 0:00:10.3]} 20... Qc7 {[%clk 0:02:38.6]}
21. Nf2 {[%clk 0:00:09.4]} 21... e5 {[%clk 0:02:35.3]} 22. dxe6 {[%clk
0:00:08.7]} 22... Nd8 {[%clk 0:02:35.2]} 23. e7 {[%clk 0:00:07.7]} 23... Nc6
{[%clk 0:02:34.9]} 24. Rad1 {[%clk 0:00:05.4]} 24... Rxe7 {[%clk 0:02:34.8]} 25.
Qd2 {[%clk 0:00:04.7]} 25... Rae8 {[%clk 0:02:34]} 26. Kh2 {[%clk 0:00:03.3]}
26... Nd4 {[%clk 0:02:33.3]} 27. Rxe7+ {[%clk 0:00:01.7]} 27... Rxe7 {[%clk
0:02:33]} 28. Bb1 {[%clk 0:00:01.9]} 28... d5 {[%clk 0:02:32.5]} 29. cxd5 {[%clk
0:00:01.2]} 29... Nxd5 {[%clk 0:02:32.8]} 30. Nd3 {[%clk 0:00:01.7]} 30... Re3
{[%clk 0:02:31.4]} 0-1

[Event "*** SCC Grand Prix: Titled Tuesday Blitz"]
[Site "Chess.com"]
[Date "2020.09.08"]
[Round "6"]
[White "pavlitas17"]
[Black "Vsevolod_Ovchinnikov"]
[Result "0-1"]
[WhiteElo "2366"]
[BlackElo "2563"]
[TimeControl "180+1"]
[EndTime "11:05:29 PDT"]
[Termination "Vsevolod_Ovchinnikov won by resignation"]

1. d4 {[%clk 0:03:00.9]} 1... Nf6 {[%clk 0:02:58.5]} 2. c4 {[%clk 0:03:00.9]}
2... g6 {[%clk 0:02:58.9]} 3. Nc3 {[%clk 0:03:00.3]} 3... d5 {[%clk 0:02:59.5]}
4. e4 {[%clk 0:03:00.8]} 4... dxe4 {[%clk 0:02:56.4]} 5. Bg5 {[%clk 0:02:58]}
5... Nbd7 {[%clk 0:02:53.3]} 6. g3 {[%clk 0:02:57.5]} 6... h6 {[%clk 0:02:52.8]}
7. Be3 {[%clk 0:02:56.1]} 7... c6 {[%clk 0:02:18.6]} 8. Bg2 {[%clk 0:02:53.6]}
8... Nb6 {[%clk 0:02:03.9]} 9. Qb3 {[%clk 0:02:53.1]} 9... Be6 {[%clk
0:02:01.9]} 10. d5 {[%clk 0:02:41.2]} 10... cxd5 {[%clk 0:02:00.5]} 11. Bxb6
{[%clk 0:02:33]} 11... Qxb6 {[%clk 0:01:55.9]} 12. Qxb6 {[%clk 0:02:32.3]} 12...
axb6 {[%clk 0:01:56.8]} 13. cxd5 {[%clk 0:02:30.3]} 13... Nxd5 {[%clk
0:01:56.7]} 14. Bxe4 {[%clk 0:02:28.1]} 14... Nxc3 {[%clk 0:01:52.8]} 15. bxc3
{[%clk 0:02:28.3]} 15... Rxa2 {[%clk 0:01:52.8]} 16. Rxa2 {[%clk 0:02:26.7]}
16... Bxa2 {[%clk 0:01:53.7]} 17. Bxb7 {[%clk 0:02:24.3]} 17... Bg7 {[%clk
0:01:54.2]} 18. Bc6+ {[%clk 0:02:24.4]} 18... Kd8 {[%clk 0:01:54.5]} 19. Ne2
{[%clk 0:02:20.4]} 19... Kc7 {[%clk 0:01:55]} 20. Be4 {[%clk 0:02:18.3]} 20...
Bc4 {[%clk 0:01:50.9]} 21. Nd4 {[%clk 0:02:12.6]} 21... Rd8 {[%clk 0:01:46.6]}
22. Ne2 {[%clk 0:02:00]} 22... f5 {[%clk 0:01:40.2]} 23. Bf3 {[%clk 0:01:51.3]}
23... e5 {[%clk 0:01:32.3]} 24. g4 {[%clk 0:01:36.9]} 24... e4 {[%clk
0:01:09.3]} 25. Bg2 {[%clk 0:01:36.8]} 25... Ra8 {[%clk 0:01:09.4]} 26. gxf5
{[%clk 0:01:35.5]} 26... Ra1+ {[%clk 0:01:07.4]} 27. Kd2 {[%clk 0:01:33.6]}
27... Ra2+ {[%clk 0:01:07.8]} 28. Ke3 {[%clk 0:01:34.3]} 28... Rxe2+ {[%clk
0:01:07.5]} 29. Kf4 {[%clk 0:01:34.7]} 29... Rxf2+ {[%clk 0:01:04.2]} 30. Kg3
{[%clk 0:01:34.9]} 30... Rxf5 {[%clk 0:01:04.4]} 31. Bxe4 {[%clk 0:01:32.9]}
31... Be5+ {[%clk 0:01:03.5]} 32. Kg4 {[%clk 0:01:32.5]} 32... Rf4+ {[%clk
0:01:03.6]} 33. Kh3 {[%clk 0:01:31.5]} 33... Rxe4 {[%clk 0:01:03.5]} 34. Rg1
{[%clk 0:01:28.3]} 34... Be6+ {[%clk 0:01:01.7]} 35. Kg2 {[%clk 0:01:27.7]}
35... Rg4+ {[%clk 0:01:01.9]} 36. Kf2 {[%clk 0:01:26.5]} 36... Rxg1 {[%clk
0:01:02.1]} 0-1

[Event "*** SCC Grand Prix: Titled Tuesday Blitz"]
[Site "Chess.com"]
[Date "2020.09.08"]
[Round "6"]
[White "jamik13"]
[Black "Manukyan_Artak"]
[Result "1-0"]
[WhiteElo "2221"]
[BlackElo "2394"]
[TimeControl "180+1"]
[EndTime "11:05:35 PDT"]
[Termination "jamik13 won by resignation"]

1. d4 {[%clk 0:03:00]} 1... Nf6 {[%clk 0:02:59.4]} 2. Nc3 {[%clk 0:02:59.8]}
2... d5 {[%clk 0:02:58.8]} 3. Bf4 {[%clk 0:02:59.1]} 3... Bf5 {[%clk 0:02:58.3]}
4. f3 {[%clk 0:02:58.1]} 4... e6 {[%clk 0:02:56.3]} 5. g4 {[%clk 0:02:57.4]}
5... Bg6 {[%clk 0:02:55.7]} 6. h4 {[%clk 0:02:57.7]} 6... h5 {[%clk 0:02:55.9]}
7. g5 {[%clk 0:02:57.1]} 7... Nfd7 {[%clk 0:02:55.9]} 8. e3 {[%clk 0:02:55.9]}
8... Bd6 {[%clk 0:02:51.8]} 9. Bxd6 {[%clk 0:02:51.1]} 9... cxd6 {[%clk
0:02:52.7]} 10. Bd3 {[%clk 0:02:50.5]} 10... Bxd3 {[%clk 0:02:51.8]} 11. Qxd3
{[%clk 0:02:50.4]} 11... g6 {[%clk 0:02:52.7]} 12. f4 {[%clk 0:02:48.1]} 12...
O-O {[%clk 0:02:52.3]} 13. Nf3 {[%clk 0:02:46.7]} 13... Nc6 {[%clk 0:02:44.7]}
14. O-O {[%clk 0:02:44.6]} 14... Rc8 {[%clk 0:02:42.7]} 15. a3 {[%clk
0:02:43.5]} 15... a6 {[%clk 0:02:41.5]} 16. e4 {[%clk 0:02:35.1]} 16... dxe4
{[%clk 0:02:29.6]} 17. Nxe4 {[%clk 0:02:34.4]} 17... Qe7 {[%clk 0:02:20.5]} 18.
c4 {[%clk 0:02:29.1]} 18... d5 {[%clk 0:02:11.6]} 19. cxd5 {[%clk 0:02:20.7]}
19... exd5 {[%clk 0:02:12.5]} 20. Nc3 {[%clk 0:02:19.8]} 20... Nb6 {[%clk
0:01:59.1]} 21. f5 {[%clk 0:02:08.3]} 21... Qd6 {[%clk 0:01:50.4]} 22. Kg2
{[%clk 0:02:01.4]} 22... Nc4 {[%clk 0:01:41]} 23. b3 {[%clk 0:01:49.1]} 23...
Nxa3 {[%clk 0:01:39.3]} 24. fxg6 {[%clk 0:01:46.5]} 24... Nb5 {[%clk 0:01:31.5]}
25. Nxb5 {[%clk 0:01:36.7]} 25... axb5 {[%clk 0:01:32.4]} 26. gxf7+ {[%clk
0:01:32.9]} 26... Rxf7 {[%clk 0:01:33.3]} 27. Qxb5 {[%clk 0:01:27.2]} 27... Qf4
{[%clk 0:01:28.4]} 28. Qxd5 {[%clk 0:01:19.7]} 28... Qg4+ {[%clk 0:01:28.2]} 29.
Kh2 {[%clk 0:01:09]} 29... Rd8 {[%clk 0:01:24.5]} 30. Qxf7+ {[%clk 0:00:53.9]}
30... Kxf7 {[%clk 0:01:19.9]} 31. Ne5+ {[%clk 0:00:54]} 1-0

[Event "*** SCC Grand Prix: Titled Tuesday Blitz"]
[Site "Chess.com"]
[Date "2020.09.08"]
[Round "6"]
[White "diablanni"]
[Black "GMJustin"]
[Result "1-0"]
[WhiteElo "2353"]
[BlackElo "2214"]
[TimeControl "180+1"]
[EndTime "11:05:35 PDT"]
[Termination "diablanni won by resignation"]

1. e4 {[%clk 0:03:00.5]} 1... c5 {[%clk 0:02:51.7]} 2. Nf3 {[%clk 0:02:58.8]}
2... d6 {[%clk 0:02:50.8]} 3. Bb5+ {[%clk 0:02:58.4]} 3... Bd7 {[%clk
0:02:48.3]} 4. Bxd7+ {[%clk 0:02:57.9]} 4... Nxd7 {[%clk 0:02:48]} 5. O-O {[%clk
0:02:49.5]} 5... Ngf6 {[%clk 0:02:46.8]} 6. Qe2 {[%clk 0:02:39.9]} 6... e6
{[%clk 0:02:46.3]} 7. b3 {[%clk 0:02:38.2]} 7... Be7 {[%clk 0:02:42.5]} 8. Bb2
{[%clk 0:02:36.7]} 8... O-O {[%clk 0:02:41.7]} 9. c4 {[%clk 0:02:32.1]} 9... a6
{[%clk 0:02:33.3]} 10. d4 {[%clk 0:02:25.2]} 10... cxd4 {[%clk 0:02:32.6]} 11.
Nxd4 {[%clk 0:02:25.7]} 11... Qa5 {[%clk 0:02:27.9]} 12. Nc3 {[%clk 0:02:23.6]}
12... Rac8 {[%clk 0:02:22.9]} 13. Rad1 {[%clk 0:02:16.4]} 13... Rfd8 {[%clk
0:02:15.9]} 14. f4 {[%clk 0:01:52.5]} 14... Qh5 {[%clk 0:02:10.3]} 15. Nf3
{[%clk 0:01:43.8]} 15... Bf8 {[%clk 0:01:53.4]} 16. Kh1 {[%clk 0:01:43.1]} 16...
Re8 {[%clk 0:01:42.3]} 17. e5 {[%clk 0:01:37.1]} 17... Ng4 {[%clk 0:01:13.4]}
18. exd6 {[%clk 0:01:23.3]} 18... Red8 {[%clk 0:01:10.4]} 19. Ne4 {[%clk
0:01:17.4]} 19... Nxh2 {[%clk 0:01:02.2]} 20. Ng3 {[%clk 0:01:17.1]} 1-0

[Event "*** SCC Grand Prix: Titled Tuesday Blitz"]
[Site "Chess.com"]
[Date "2020.09.08"]
[Round "6"]
[White "TregubovP"]
[Black "ChelsieMonica"]
[Result "1-0"]
[WhiteElo "2599"]
[BlackElo "2430"]
[TimeControl "180+1"]
[EndTime "11:05:39 PDT"]
[Termination "TregubovP won by resignation"]

1. e4 {[%clk 0:03:00.9]} 1... e5 {[%clk 0:02:58.6]} 2. Nf3 {[%clk 0:03:00.6]}
2... Nc6 {[%clk 0:02:54]} 3. Bb5 {[%clk 0:03:00.5]} 3... a6 {[%clk 0:02:47.8]}
4. Ba4 {[%clk 0:03:00.2]} 4... Nf6 {[%clk 0:02:41.7]} 5. d4 {[%clk 0:02:59.9]}
5... exd4 {[%clk 0:02:33.6]} 6. O-O {[%clk 0:02:57.2]} 6... Be7 {[%clk
0:02:30.8]} 7. e5 {[%clk 0:02:54.7]} 7... Ne4 {[%clk 0:02:28.4]} 8. Nxd4 {[%clk
0:02:53.6]} 8... Nc5 {[%clk 0:02:27.1]} 9. Nf5 {[%clk 0:02:49.9]} 9... g6 {[%clk
0:01:57]} 10. Nxe7 {[%clk 0:02:24.8]} 10... Qxe7 {[%clk 0:01:55.9]} 11. Nc3
{[%clk 0:02:24.8]} 11... Nxa4 {[%clk 0:01:51.4]} 12. Nd5 {[%clk 0:02:24.9]}
12... O-O {[%clk 0:01:52.3]} 13. Nxe7+ {[%clk 0:02:24.7]} 13... Nxe7 {[%clk
0:01:31.9]} 14. Bg5 {[%clk 0:02:12.6]} 14... Nf5 {[%clk 0:01:26.5]} 15. g4
{[%clk 0:02:12.3]} 15... Ng7 {[%clk 0:01:26.5]} 16. c4 {[%clk 0:01:54.1]} 16...
Nc5 {[%clk 0:01:16.8]} 17. Be7 {[%clk 0:01:53.7]} 17... Nce6 {[%clk 0:01:15]}
18. Bxf8 {[%clk 0:01:53.7]} 18... Nxf8 {[%clk 0:01:15.9]} 19. f4 {[%clk
0:01:53]} 19... d6 {[%clk 0:01:14.8]} 20. exd6 {[%clk 0:01:50.8]} 20... cxd6
{[%clk 0:01:15.7]} 21. h3 {[%clk 0:01:51.2]} 21... Be6 {[%clk 0:00:52.9]} 22. b3
{[%clk 0:01:49.4]} 22... Rd8 {[%clk 0:00:50.4]} 23. Qf3 {[%clk 0:01:42.6]} 23...
Bc8 {[%clk 0:00:49.1]} 24. Rad1 {[%clk 0:01:36.3]} 24... Nge6 {[%clk 0:00:45.9]}
25. f5 {[%clk 0:01:28.7]} 25... Ng5 {[%clk 0:00:38.5]} 26. Qe3 {[%clk
0:01:27.9]} 26... f6 {[%clk 0:00:37.9]} 27. h4 {[%clk 0:01:25.1]} 27... Nf7
{[%clk 0:00:36.7]} 28. Qe7 {[%clk 0:01:24.3]} 28... Rd7 {[%clk 0:00:34.2]} 29.
Qxf6 {[%clk 0:01:24]} 1-0

[Event "*** SCC Grand Prix: Titled Tuesday Blitz"]
[Site "Chess.com"]
[Date "2020.09.08"]
[Round "6"]
[White "kot60"]
[Black "m_ezat"]
[Result "0-1"]
[WhiteElo "2421"]
[BlackElo "2587"]
[TimeControl "180+1"]
[EndTime "11:05:41 PDT"]
[Termination "m_ezat won by resignation"]

1. e4 {[%clk 0:03:00.9]} 1... c6 {[%clk 0:02:59.7]} 2. d4 {[%clk 0:03:00.5]}
2... d5 {[%clk 0:03:00.1]} 3. f3 {[%clk 0:02:59.9]} 3... dxe4 {[%clk 0:02:59.4]}
4. fxe4 {[%clk 0:03:00]} 4... e5 {[%clk 0:03:00.1]} 5. Nf3 {[%clk 0:02:59.6]}
5... Be6 {[%clk 0:03:00.7]} 6. Nc3 {[%clk 0:02:57.8]} 6... Nd7 {[%clk
0:02:58.3]} 7. d5 {[%clk 0:02:57.8]} 7... Bg4 {[%clk 0:02:56.8]} 8. Be2 {[%clk
0:02:57]} 8... Bc5 {[%clk 0:02:55.7]} 9. Qd3 {[%clk 0:02:43.5]} 9... Ngf6 {[%clk
0:02:56]} 10. Be3 {[%clk 0:02:38.8]} 10... Qb6 {[%clk 0:02:55.3]} 11. Bxc5
{[%clk 0:02:30.3]} 11... Nxc5 {[%clk 0:02:55.3]} 12. Qc4 {[%clk 0:02:26.7]}
12... O-O {[%clk 0:02:41.7]} 13. O-O-O {[%clk 0:02:17.2]} 13... Rac8 {[%clk
0:02:39]} 14. d6 {[%clk 0:02:14.9]} 14... Be6 {[%clk 0:02:37]} 15. Na4 {[%clk
0:02:12.5]} 15... Nxa4 {[%clk 0:02:19.6]} 16. Qxa4 {[%clk 0:02:10.4]} 16... Qe3+
{[%clk 0:02:19.8]} 17. Rd2 {[%clk 0:02:05.7]} 17... Nxe4 {[%clk 0:02:20.1]} 18.
Rd1 {[%clk 0:02:00.1]} 18... Rfd8 {[%clk 0:02:13.4]} 19. Kb1 {[%clk 0:01:49.1]}
19... Nxd2+ {[%clk 0:02:11.8]} 20. Rxd2 {[%clk 0:01:49.1]} 20... Bd5 {[%clk
0:02:08.5]} 21. Qb4 {[%clk 0:01:35.7]} 21... a5 {[%clk 0:02:05.2]} 22. Qc3
{[%clk 0:01:28.3]} 22... Qxc3 {[%clk 0:02:00.1]} 23. bxc3 {[%clk 0:01:28.7]}
23... Rxd6 {[%clk 0:02:00.4]} 24. Kc1 {[%clk 0:01:22.9]} 24... Rcd8 {[%clk
0:01:58.6]} 25. Nxe5 {[%clk 0:01:22.7]} 25... Bxa2 {[%clk 0:01:39.5]} 26. Rxd6
{[%clk 0:01:21.4]} 26... Rxd6 {[%clk 0:01:38.5]} 27. Bd3 {[%clk 0:01:14.6]}
27... Be6 {[%clk 0:01:36]} 28. c4 {[%clk 0:01:12.5]} 28... Rd8 {[%clk
0:01:34.8]} 29. Kb2 {[%clk 0:01:11.6]} 29... f6 {[%clk 0:01:24.5]} 30. Nf3
{[%clk 0:01:10.7]} 30... b5 {[%clk 0:01:20.2]} 31. cxb5 {[%clk 0:01:07.3]} 31...
cxb5 {[%clk 0:01:20.1]} 32. Bxb5 {[%clk 0:01:03.7]} 32... Rb8 {[%clk 0:01:18.8]}
33. Nd4 {[%clk 0:01:03.2]} 33... Bc4 {[%clk 0:01:18.4]} 0-1

[Event "*** SCC Grand Prix: Titled Tuesday Blitz"]
[Site "Chess.com"]
[Date "2020.09.08"]
[Round "6"]
[White "Rud_Makarian"]
[Black "maximnovik"]
[Result "1-0"]
[WhiteElo "2754"]
[BlackElo "2509"]
[TimeControl "180+1"]
[EndTime "11:05:51 PDT"]
[Termination "Rud_Makarian won on time"]

1. d4 {[%clk 0:03:00.7]} 1... Nf6 {[%clk 0:02:15.3]} 2. Nf3 {[%clk 0:02:58.6]}
2... g6 {[%clk 0:02:15.7]} 3. Bf4 {[%clk 0:02:57.3]} 3... Bg7 {[%clk 0:02:16]}
4. h3 {[%clk 0:02:57.8]} 4... O-O {[%clk 0:02:16.4]} 5. e3 {[%clk 0:02:58.5]}
5... c5 {[%clk 0:02:16.8]} 6. c3 {[%clk 0:02:58.4]} 6... b6 {[%clk 0:02:15.9]}
7. Be2 {[%clk 0:02:58.1]} 7... d6 {[%clk 0:02:16.1]} 8. O-O {[%clk 0:02:58.5]}
8... Ba6 {[%clk 0:02:16.6]} 9. a4 {[%clk 0:02:57.3]} 9... Qc8 {[%clk 0:02:16.7]}
10. a5 {[%clk 0:02:57]} 10... Qb7 {[%clk 0:02:16.9]} 11. Re1 {[%clk 0:02:53.8]}
11... Bxe2 {[%clk 0:02:15.6]} 12. Qxe2 {[%clk 0:02:53.5]} 12... Na6 {[%clk
0:02:15.2]} 13. Na3 {[%clk 0:02:50.3]} 13... Nc7 {[%clk 0:02:13.7]} 14. e4
{[%clk 0:02:47.3]} 14... Ne6 {[%clk 0:02:09.3]} 15. Bh2 {[%clk 0:02:46.7]} 15...
cxd4 {[%clk 0:02:08.2]} 16. cxd4 {[%clk 0:02:46.5]} 16... bxa5 {[%clk
0:01:52.8]} 17. Nc4 {[%clk 0:02:44.1]} 17... Rab8 {[%clk 0:01:47.2]} 18. Rxa5
{[%clk 0:02:35.6]} 18... Rfc8 {[%clk 0:01:45.4]} 19. e5 {[%clk 0:02:05.3]} 19...
Nd5 {[%clk 0:01:12.5]} 20. exd6 {[%clk 0:02:04]} 20... Nef4 {[%clk 0:01:01.2]}
21. Qf1 {[%clk 0:02:01.3]} 21... Qb4 {[%clk 0:00:49.5]} 22. dxe7 {[%clk
0:01:45]} 22... Ne6 {[%clk 0:00:32.8]} 23. Bxb8 {[%clk 0:01:42.7]} 23... Nxe7
{[%clk 0:00:25.4]} 24. Bd6 {[%clk 0:01:40.9]} 1-0

[Event "*** SCC Grand Prix: Titled Tuesday Blitz"]
[Site "Chess.com"]
[Date "2020.09.08"]
[Round "6"]
[White "manitodeplomo"]
[Black "AniJak"]
[Result "1-0"]
[WhiteElo "2569"]
[BlackElo "2362"]
[TimeControl "180+1"]
[EndTime "11:06:00 PDT"]
[Termination "manitodeplomo won by resignation"]

1. d4 {[%clk 0:03:00.9]} 1... d5 {[%clk 0:02:59.8]} 2. c4 {[%clk 0:02:59.6]}
2... c6 {[%clk 0:02:59.9]} 3. Nf3 {[%clk 0:02:58.1]} 3... Nf6 {[%clk 0:02:59.7]}
4. Nc3 {[%clk 0:02:56.1]} 4... e6 {[%clk 0:02:59.5]} 5. Bg5 {[%clk 0:02:55.6]}
5... h6 {[%clk 0:02:58.8]} 6. Bxf6 {[%clk 0:02:55]} 6... Qxf6 {[%clk 0:02:59.1]}
7. e3 {[%clk 0:02:55.6]} 7... g6 {[%clk 0:02:59.2]} 8. Qc2 {[%clk 0:02:55.9]}
8... Bg7 {[%clk 0:02:59.3]} 9. O-O-O {[%clk 0:02:56.4]} 9... Nd7 {[%clk
0:02:52.8]} 10. Kb1 {[%clk 0:02:54.9]} 10... a5 {[%clk 0:02:49.6]} 11. h4 {[%clk
0:02:53.2]} 11... O-O {[%clk 0:02:40.7]} 12. Be2 {[%clk 0:02:40.6]} 12... dxc4
{[%clk 0:02:38.8]} 13. Bxc4 {[%clk 0:02:36.2]} 13... b5 {[%clk 0:02:38.6]} 14.
Bd3 {[%clk 0:02:36.5]} 14... a4 {[%clk 0:02:28]} 15. Ne4 {[%clk 0:02:33.8]}
15... Qe7 {[%clk 0:02:15.1]} 16. Qxc6 {[%clk 0:02:33.8]} 16... Rb8 {[%clk
0:02:14.6]} 17. Qd6 {[%clk 0:02:33.3]} 17... Qxd6 {[%clk 0:02:09.4]} 18. Nxd6
{[%clk 0:02:32.7]} 18... Ba6 {[%clk 0:02:10.3]} 19. Rc1 {[%clk 0:02:31.1]} 19...
Rfd8 {[%clk 0:02:00.5]} 20. Rc6 {[%clk 0:02:28.1]} 20... Nb6 {[%clk 0:01:48.1]}
21. Rhc1 {[%clk 0:02:12.1]} 21... Bf8 {[%clk 0:01:35.9]} 22. Nxb5 {[%clk
0:02:02.8]} 22... Bxb5 {[%clk 0:01:34.1]} 23. Bxb5 {[%clk 0:02:02.3]} 23... Nd5
{[%clk 0:01:29.3]} 24. Bxa4 {[%clk 0:02:01.3]} 24... Rb4 {[%clk 0:01:11.4]} 25.
Bb3 {[%clk 0:01:56]} 25... Rdb8 {[%clk 0:01:10.1]} 26. Rc8 {[%clk 0:01:51.3]}
26... Ne7 {[%clk 0:00:56]} 27. Rxb8 {[%clk 0:01:50.4]} 27... Rxb8 {[%clk
0:00:55.2]} 28. Ne5 {[%clk 0:01:50]} 28... Nf5 {[%clk 0:00:53.3]} 29. g3 {[%clk
0:01:48.2]} 29... Bd6 {[%clk 0:00:49.7]} 30. Nc4 {[%clk 0:01:42]} 30... Be7
{[%clk 0:00:49.3]} 31. Bc2 {[%clk 0:01:36.5]} 31... Ng7 {[%clk 0:00:47.6]} 32.
Bd3 {[%clk 0:01:35.9]} 32... Nh5 {[%clk 0:00:47.1]} 33. Be2 {[%clk 0:01:30.8]}
33... Nf6 {[%clk 0:00:46.9]} 34. Bf3 {[%clk 0:01:31.3]} 34... g5 {[%clk
0:00:46.4]} 35. hxg5 {[%clk 0:01:30.8]} 35... hxg5 {[%clk 0:00:46.9]} 36. a3
{[%clk 0:01:29.7]} 36... Kg7 {[%clk 0:00:47]} 37. Ka2 {[%clk 0:01:30.1]} 37...
Kg6 {[%clk 0:00:44.9]} 38. Ne5+ {[%clk 0:01:25.6]} 38... Kg7 {[%clk 0:00:45.1]}
39. Rc7 {[%clk 0:01:22.9]} 1-0

[Event "*** SCC Grand Prix: Titled Tuesday Blitz"]
[Site "Chess.com"]
[Date "2020.09.08"]
[Round "6"]
[White "nau64"]
[Black "niki_2003"]
[Result "1-0"]
[WhiteElo "2302"]
[BlackElo "1638"]
[TimeControl "180+1"]
[EndTime "11:06:02 PDT"]
[Termination "nau64 won by resignation"]

1. d4 {[%clk 0:03:00.9]} 1... Nf6 {[%clk 0:02:59.4]} 2. c4 {[%clk 0:03:00.9]}
2... e6 {[%clk 0:02:59.1]} 3. Nc3 {[%clk 0:03:01]} 3... Bb4 {[%clk 0:02:58.1]}
4. Nf3 {[%clk 0:03:01.1]} 4... c5 {[%clk 0:02:57]} 5. g3 {[%clk 0:03:00]} 5...
Na6 {[%clk 0:02:54.6]} 6. Bg2 {[%clk 0:02:59.6]} 6... O-O {[%clk 0:02:51.9]} 7.
O-O {[%clk 0:02:59.3]} 7... Bxc3 {[%clk 0:02:52.2]} 8. bxc3 {[%clk 0:02:58.8]}
8... Qa5 {[%clk 0:02:51.6]} 9. Qd3 {[%clk 0:02:50.4]} 9... Nb8 {[%clk
0:02:47.5]} 10. Bg5 {[%clk 0:02:44.2]} 10... d6 {[%clk 0:02:31.8]} 11. Bxf6
{[%clk 0:02:41.6]} 11... gxf6 {[%clk 0:02:31.7]} 12. Qe3 {[%clk 0:02:17.9]}
12... cxd4 {[%clk 0:02:21.9]} 13. cxd4 {[%clk 0:02:15.4]} 13... Qf5 {[%clk
0:02:17.5]} 14. Nh4 {[%clk 0:01:48.3]} 14... Qg5 {[%clk 0:02:09]} 15. f4 {[%clk
0:01:47.5]} 15... Qh5 {[%clk 0:02:03.7]} 16. Rab1 {[%clk 0:01:43.2]} 16... Nc6
{[%clk 0:01:56.3]} 17. Rb5 {[%clk 0:01:41.6]} 17... Qh6 {[%clk 0:01:54]} 18. Bf3
{[%clk 0:01:15.6]} 18... f5 {[%clk 0:01:51.7]} 19. Bg2 {[%clk 0:00:56.3]} 19...
Qf6 {[%clk 0:01:45.3]} 20. Nf3 {[%clk 0:00:54.1]} 20... a6 {[%clk 0:01:44.7]}
21. Rb6 {[%clk 0:00:50.6]} 21... Na5 {[%clk 0:01:38]} 22. Qc3 {[%clk 0:00:41.8]}
22... Nc6 {[%clk 0:01:36.1]} 23. Rc1 {[%clk 0:00:37.8]} 23... Kg7 {[%clk
0:01:30.5]} 24. e3 {[%clk 0:00:37.6]} 24... Rb8 {[%clk 0:01:24.6]} 25. d5 {[%clk
0:00:31.4]} 25... Ne7 {[%clk 0:01:22.1]} 26. Rxd6 {[%clk 0:00:30.3]} 26... Qxc3
{[%clk 0:01:19.2]} 27. Rxc3 {[%clk 0:00:31.2]} 27... Rd8 {[%clk 0:01:14.8]} 28.
Rxd8 {[%clk 0:00:30.3]} 1-0